bitfinex-derivatives/quotes_SOLF0:USTF0_20260220
["timestamp","ask_amount","ask_price","bid_price","bid_amount"]
[1771547057155,2.96950998,83.09,83.033,8.28508646]
[1771547057351,2.83475011,83.089,83.033,8.28508646]
[1771547057658,2.83475011,83.089,83.04,2.96950998]
[1771547058148,10.8395,83.076,83.04,2.96950998]
[1771547058353,10.8395,83.076,83.033,8.28508646]
[1771547058854,10.8386,83.083,83.035,8.28508646]
[1771547059054,10.8386,83.083,83.04,11.25459644]
[1771547059255,10.8386,83.083,83.041,8.28508646]
[1771547063758,10.8393,83.077,83.041,8.28508646]
[1771547064657,10.84,83.071,83.041,8.28508646]
[1771547065057,2.83475011,83.089,83.041,8.28508646]
[1771547065450,10.8393,83.077,83.041,8.28508646]
[1771547067456,3.00991944,83.066,83.02,2.96950998]
[1771547067657,3.00991944,83.066,83.021,8.28508646]
[1771547068660,10.8401,83.071,83.029,8.28508646]
[1771547068961,10.8401,83.071,83.031,8.28508646]
[1771547072263,10.8401,83.071,83.035,8.28508646]
[1771547076563,10.8401,83.071,82.995,29.09731187]
[1771547076564,3.14188659,83.085,83.021,8.28508646]
[1771547076768,3.14188659,83.085,83.041,8.28508646]
[1771547077162,3.15594901,83.099,83.041,8.28508646]
[1771547077566,3.15594901,83.099,83.051,9.30734543]
[1771547078362,13.99234901,83.099,83.057,20.14904543]
[1771547078971,10.8364,83.099,83.061,9.30734543]
[1771547079172,10.8356,83.106,83.061,9.30734543]
[1771547079872,2.88169522,83.11,83.071,9.30734543]
[1771547081772,10.8351,83.109,83.071,9.30734543]
[1771547082874,3.08213696,83.099,83.058,9.30734543]
[1771547083272,10.8369,83.096,83.058,9.30734543]
[1771547085767,10.8376,83.09,83.058,9.30734543]
[1771547086771,3.22355857,83.089,83.039,9.30734543]
[1771547087075,3.22355857,83.099,83.051,9.30734543]
[1771547088778,10.8378,83.088,83.051,9.30734543]
[1771547092581,3.28767788,83.11,83.061,9.30734543]
[1771547092778,2.96746506,83.12,83.07,2.96746506]
[1771547092980,3.27230496,83.123,83.071,9.30734543]
[1771547093276,10.8357,83.104,83.071,9.30734543]
[1771547095275,10.8344,83.114,83.071,9.30734543]
[1771547096479,10.8336,83.121,83.081,9.30734543]
[1771547100277,14.37336626,83.121,83.081,9.30734543]
[1771547100478,3.53976626,83.099,83.05,2.96746506]
[1771547100682,3.53976626,83.099,83.051,9.30734543]
[1771547101279,3.64367093,83.127,83.071,9.30734543]
[1771547101483,3.64367093,83.127,83.081,9.30734543]
[1771547101885,2.96746506,83.14,83.081,9.30734543]
[1771547102082,3.67224502,83.139,83.081,9.30734543]
[1771547102781,3.67224502,83.139,83.08,2.96746506]
[1771547102782,3.67224502,83.139,83.082,9.05483777]
[1771547102978,3.67224502,83.139,83.1,2.96746506]
[1771547103485,3.67224502,83.139,83.091,9.05483777]
[1771547104781,10.8317,83.135,83.094,9.05483777]
[1771547106185,10.8324,83.13,83.094,9.05483777]
[1771547106385,3.68935814,83.109,83.064,9.05483777]
[1771547107385,3.74269975,83.108,83.064,9.05483777]
[1771547107578,3.74375958,83.099,83.051,9.19091344]
[1771547107784,168.4513,83.156,83.04,276.50530616]
[1771547107785,3.74375958,83.089,83.04,254.45480905]
[1771547107985,3.74375958,83.089,83.041,9.19091344]
[1771547108680,10.8383,83.085,83.041,9.19091344]
[1771547110386,3.89945661,83.107,83.041,9.19091344]
[1771547110387,10.8391,83.079,83.041,9.19091344]
[1771547115392,3.69744325,83.083,83.041,9.19091344]
[1771547117095,10.8387,83.081,83.041,9.19091344]
[1771547121295,3.69744325,83.083,83.041,9.19091344]
[1771547121999,10.8386,83.082,83.041,20.03481344]
[1771547124099,10.8393,83.077,83.041,20.03481344]
[1771547125097,10.8393,83.077,83.042,9.19091344]
[1771547126303,10.8401,83.071,83.042,9.19091344]
[1771547128798,10.8401,83.071,83.024,22.05049711]
[1771547128799,3.82461295,83.063,83.021,9.19091344]
[1771547129401,10.8419,83.057,83.021,9.19091344]
[1771547130001,10.8426,83.052,83.021,9.19091344]
[1771547130902,10.8441,83.04,83.008,9.19091344]
[1771547131102,10.8441,83.04,83.01,2.96746506]
[1771547131302,3.88950546,83.052,83.011,9.19091344]
[1771547132799,10.8432,83.047,83.011,9.19091344]
[1771547132996,3.90308144,83.046,83.0,2.96746506]
[1771547133197,3.91012354,83.039,82.99,2.96746506]
[1771547133401,3.91012354,83.032,82.99,2.96746506]
[1771547134704,10.8454,83.031,82.99,12.1583785]
[1771547134901,10.8454,83.031,82.991,9.19091344]
[1771547137803,10.8443,83.039,82.992,8.68147147]
[1771547138004,3.95839407,83.044,83.0,2.96746506]
[1771547138211,3.95839407,83.044,83.001,8.68147147]
[1771547138506,3.964838,83.039,82.99,2.96746506]
[1771547138905,3.964838,83.039,82.991,8.68147147]
[1771547139507,10.8452,83.032,82.991,8.68147147]
[1771547143809,14.63160877,83.032,82.991,8.68147147]
[1771547144210,3.79243067,83.031,82.991,8.68147147]
[1771547145606,3.89372721,83.029,82.983,10.8515]
[1771547145811,3.89372721,83.029,82.984,8.68147147]
[1771547146709,3.95452614,83.027,82.984,8.68147147]
[1771547147800,10.8464,83.022,82.984,8.68147147]
[1771547148001,3.95452614,83.027,82.984,8.68147147]
[1771547149306,10.845,83.033,82.99,8.68147147]
[1771547149514,10.845,83.033,82.991,8.68147147]
[1771547149709,3.93824829,83.032,82.991,8.68147147]
[1771547150212,3.93824829,83.032,82.992,10.8503]
[1771547150908,10.8453,83.031,82.992,10.8503]
[1771547151718,10.8453,83.031,82.993,8.68147147]
[1771547153915,3.93824829,83.032,82.995,8.68147147]
[1771547156710,3.95084232,83.058,83.01,2.97176202]
[1771547157016,3.95084232,83.079,83.021,8.68147147]
[1771547157212,10.8404,83.068,83.022,8.68147147]
[1771547157518,3.95084232,83.079,83.022,8.68147147]
[1771547157811,3.95626212,83.069,83.022,8.68147147]
[1771547158012,3.95626212,83.053,83.011,10.8478]
[1771547158412,3.95626212,83.053,83.012,8.68147147]
[1771547159719,3.95626212,83.053,83.016,8.68147147]
[1771547160820,10.8411,83.063,83.021,8.68147147]
[1771547161818,10.8411,83.063,83.023,8.68147147]
[1771547162215,10.8411,83.063,82.973,276.34485667]
[1771547162216,10.8397,83.074,83.031,8.84925217]
[1771547162512,2.97176202,83.09,83.041,8.84925217]
[1771547162719,4.04045871,83.091,83.05,2.97176202]
[1771547162921,4.04045871,83.091,83.051,8.84925217]
[1771547163614,10.8378,83.088,83.051,8.84925217]
[1771547164312,4.04045871,83.091,83.051,8.84925217]
[1771547165420,10.8376,83.09,83.051,8.84925217]
[1771547166021,4.27435733,83.069,83.026,8.84925217]
[1771547166623,4.27435733,83.069,83.031,8.84925217]
[1771547166922,2.97176202,83.08,83.031,8.84925217]
[1771547167118,10.8391,83.079,83.033,9.24400865]
[1771547167720,10.8395,83.076,83.033,9.24400865]
[1771547168022,4.28255453,83.075,83.033,9.24400865]
[1771547169226,10.8397,83.074,83.033,9.24400865]
[1771547170326,4.28255453,83.075,83.033,9.24400865]
[1771547170327,10.8405,83.068,83.033,9.24400865]
[1771547170819,15.12205453,83.075,83.033,9.24400865]
[1771547171021,4.14414234,83.074,83.033,9.24400865]
[1771547171824,4.14896841,83.087,83.041,9.24400865]
[1771547172020,7.12073043,83.1,83.051,9.24400865]
[1771547172424,4.15330356,83.099,83.051,9.24400865]
[1771547172822,10.8377,83.089,83.051,9.24400865]
[1771547173624,10.8368,83.096,83.051,9.24400865]
[1771547175429,10.8377,83.089,83.051,9.24400865]
[1771547176034,4.14991356,83.095,83.051,9.24400865]
[1771547176629,4.15420671,83.119,83.071,9.24400865]
[1771547176929,180.431,83.191,83.026,21.6918]
[1771547176930,4.04922181,83.132,83.09,2.97176202]
[1771547177128,4.04922181,83.132,83.09,9.24400865]
[1771547177328,4.05327027,83.129,83.08,2.97176202]
[1771547177727,4.05327027,83.129,83.081,9.24400865]
[1771547178933,4.05327027,83.129,83.09,2.97176202]
[1771547179233,4.05327027,83.129,83.081,9.24400865]
[1771547179428,36.12,83.18,83.045,475.07586741]
[1771547179429,4.04736339,83.149,83.1,2.97176202]
[1771547179635,4.04736339,83.149,83.101,9.24400865]
[1771547179835,4.04736339,83.149,83.11,2.97176202]
[1771547180338,4.05144801,83.163,83.111,9.24400865]
[1771547180639,4.05144801,83.163,83.121,9.24400865]
[1771547181137,3.96679647,83.179,83.121,9.24400865]
[1771547181529,10.8274,83.168,83.121,9.24400865]
[1771547181937,3.96679647,83.179,83.13,2.97176202]
[1771547182138,3.96679647,83.179,83.13,12.21577067]
[1771547182339,3.96679647,83.179,83.131,9.24400865]
[1771547182833,2.97176202,83.25,83.131,12.12547713]
[1771547183038,78.68700212,83.273,83.21,2.97176202]
[1771547183236,80.92072916,83.259,83.19,2.97176202]
[1771547183533,80.92072916,83.249,83.19,2.97176202]
[1771547183833,80.92072916,83.259,83.2,2.97176202]
[1771547184237,80.92072916,83.259,83.186,10.825]
[1771547184433,80.92072916,83.259,83.2,2.97176202]
[1771547185339,80.92072916,83.259,83.203,10.8228]
[1771547185536,80.92072916,83.259,83.2,2.97176202]
[1771547185938,80.92072916,83.259,83.18,7.91905719]
[1771547186438,80.92072916,83.256,83.16,69.91905719]
[1771547186638,80.92072916,83.256,83.18,7.91905719]
[1771547187440,80.92072916,83.256,83.16,69.91905719]
[1771547188142,80.92072916,83.256,83.18,7.91905719]
[1771547188641,80.92072916,83.256,83.192,10.8243]
[1771547189643,80.92072916,83.256,83.16,69.91905719]
[1771547190539,80.92072916,83.242,83.16,69.91905719]
[1771547190740,80.92072916,83.242,83.18,7.91905719]
[1771547191136,80.92072916,83.24,83.18,7.91905719]
[1771547191343,80.92072916,83.256,83.18,7.91905719]
[1771547191645,80.92072916,83.275,83.215,10.8213]
[1771547191845,80.92072916,83.275,83.22,7.91905719]
[1771547192543,80.92072916,83.275,83.162,253.75274037]
[1771547192544,80.92072916,83.275,83.19,7.91905719]
[1771547193846,7.91905719,83.29,83.162,253.75274037]
[1771547193847,80.92072916,83.261,83.18,7.91905719]
[1771547194345,80.92072916,83.261,83.213,10.8215]
[1771547196541,80.92072916,83.261,83.203,10.8228]
[1771547196747,80.92072916,83.259,83.162,253.75274037]
[1771547196945,80.92072916,83.259,83.17,7.91905719]
[1771547197942,80.86950388,83.256,83.191,10.8244]
[1771547198745,80.86950388,83.242,83.18,10.8257]
[1771547199242,80.86950388,83.242,83.188,10.8247]
[1771547200147,80.86950388,83.242,83.196,10.8236]
[1771547201546,36.12,83.305,83.19,7.91905719]
[1771547201746,80.86950388,83.393,83.28,7.91905719]
[1771547202046,80.86950388,83.39,83.3,7.91905719]
[1771547202245,80.86950388,83.39,83.33,7.91905719]
[1771547202441,80.86950388,83.429,83.33,7.91905719]
[1771547202641,167.7992,83.479,83.304,168.1516]
[1771547202642,80.86950388,83.431,83.35,10.8037]
[1771547203144,80.86950388,83.431,83.36,7.91905719]
[1771547203348,80.86950388,83.431,83.326,168.1055]
[1771547203549,80.86950388,83.431,83.34,7.91905719]
[1771547203847,80.86950388,83.431,83.36,10.8024]
[1771547204047,80.86950388,83.419,83.323,168.1124]
[1771547204350,7.91905719,83.4,83.289,168.1801]
[1771547204655,80.86950388,83.447,83.344,168.0705]
[1771547204952,80.86950388,83.447,83.384,10.7992]
[1771547205145,80.86950388,83.469,83.38,7.91905719]
[1771547205345,80.86950388,83.469,83.348,36.12]
[1771547205346,80.86950388,83.489,83.431,10.7932]
[1771547205552,80.86950388,83.489,83.374,204.1299]
[1771547205746,80.86950388,83.489,83.39,7.91905719]
[1771547205944,80.86950388,83.479,83.38,7.91905719]
[1771547206146,7.91905719,83.52,83.342,192.87884865]
[1771547206147,80.86950388,83.459,83.36,7.91905719]
[1771547206750,80.86950388,83.459,83.394,10.798]
[1771547207349,80.86950388,83.459,83.379,10.7999]
[1771547207748,80.86950388,83.459,83.36,7.91905719]
[1771547208051,80.86950388,83.459,83.377,10.8002]
[1771547208253,80.86950388,83.439,83.377,10.8002]
[1771547208650,80.86950388,83.439,83.363,10.802]
[1771547209052,80.86950388,83.419,83.342,192.87884865]
[1771547209252,80.86950388,83.419,83.35,10.8037]
[1771547209448,80.86950388,83.439,83.35,7.91905719]
[1771547209654,80.86950388,83.439,83.375,10.8004]
[1771547209849,80.86950388,83.419,83.342,192.87884865]
[1771547210557,78.78261619,83.419,83.342,192.87884865]
[1771547211755,78.78261619,83.419,83.345,10.8043]
[1771547212455,79.90879964,83.409,83.342,192.87884865]
[1771547214757,79.54727326,83.389,83.319,10.8077]
[1771547215156,2.08688769,83.445,83.31,7.88941655]
[1771547215157,79.54727326,83.409,83.31,7.88941655]
[1771547215452,79.54727326,83.409,83.291,168.1759]
[1771547215453,79.54727326,83.409,83.33,7.88941655]
[1771547216358,79.54727326,83.409,83.342,10.8047]
[1771547216754,79.54727326,83.409,83.33,7.88941655]
[1771547216952,79.54727326,83.409,83.331,10.8062]
[1771547216953,90.34337326,83.409,83.331,10.8062]
[1771547217152,79.54727326,83.409,83.331,10.8062]
[1771547217853,79.54727326,83.409,83.33,7.88941655]
[1771547218063,79.58390607,83.427,83.35,7.88941655]
[1771547218356,79.58390607,83.409,83.32,7.88941655]
[1771547219658,79.50243959,83.403,83.324,10.8071]
[1771547220255,79.50243959,83.389,83.324,10.8071]
[1771547220767,79.50243959,83.389,83.29,7.88941655]
[1771547220768,79.59959331,83.429,83.35,7.88941655]
[1771547220955,79.59959331,83.429,83.322,168.1137]
[1771547221261,7.88941655,83.45,83.37,7.88941655]
[1771547221262,79.59959331,83.449,83.37,7.88941655]
[1771547221661,79.59959331,83.449,83.35,7.88941655]
[1771547221662,79.60034103,83.479,83.423,10.7942]
[1771547222054,79.60034103,83.479,83.41,7.88941655]
[1771547222254,79.60034103,83.479,83.339,168.0798]
[1771547222255,79.60034103,83.479,83.4,10.7972]
[1771547222755,79.64768778,83.476,83.38,7.88941655]
[1771547222959,79.64768778,83.459,83.36,7.88941655]
[1771547223160,79.64768778,83.448,83.361,3.32168417]
[1771547223361,79.64768778,83.448,83.362,3.32168417]
[1771547223559,79.64768778,83.448,83.369,10.8012]
[1771547224264,79.64858492,83.433,83.358,261.64097924]
[1771547224655,79.64858492,83.433,83.358,250.83837924]
[1771547225461,79.64858492,83.433,83.36,7.88941655]
[1771547225763,79.64858492,83.433,83.384,10.7993]
[1771547226863,79.64858492,83.433,83.36,7.88941655]
[1771547226864,79.64858492,83.433,83.373,10.8007]
[1771547228062,79.64858492,83.433,83.358,250.83837924]
[1771547228063,79.64858492,83.433,83.359,10.8025]
[1771547228265,79.64858492,83.433,83.358,250.83837924]
[1771547228561,79.76596695,83.429,83.361,10.8022]
[1771547229558,79.76596695,83.429,83.358,250.83837924]
[1771547230162,79.68496648,83.418,83.358,250.83837924]
[1771547231366,79.68496648,83.418,83.358,261.64097924]
[1771547231563,79.68496648,83.418,83.359,3.34726406]
[1771547231763,79.68496648,83.418,83.36,3.34726406]
[1771547231961,79.68496648,83.418,83.358,250.83837924]
[1771547232161,79.68496648,83.418,83.359,3.34726611]
[1771547232358,79.68496648,83.418,83.369,10.8012]
[1771547232665,79.68496648,83.418,83.358,250.83837924]
[1771547232966,79.61263304,83.416,83.358,250.83837924]
[1771547233464,79.61263304,83.404,83.358,250.83837924]
[1771547233866,79.61321552,83.399,83.32,7.88941655]
[1771547234067,79.61321552,83.393,83.334,10.8058]
[1771547234267,79.61321552,83.393,83.335,3.35551907]
[1771547234566,79.61321552,83.393,83.336,3.35551907]
[1771547234759,79.61321552,83.393,83.334,10.8058]
[1771547234965,79.61321552,83.393,83.335,3.35798538]
[1771547235164,79.61321552,83.393,83.336,3.35798538]
[1771547235459,79.61321552,83.393,83.337,3.35798538]
[1771547235761,79.61321552,83.393,83.338,3.35798538]
[1771547236068,79.61321552,83.393,83.339,3.35798538]
[1771547236263,79.61321552,83.393,83.34,3.35798538]
[1771547236565,79.61321552,83.393,83.341,3.35798538]
[1771547236765,79.61321552,83.393,83.342,3.35798538]
[1771547236965,79.61321552,83.393,83.343,3.35798538]
[1771547237266,79.61321552,83.393,83.344,3.35798538]
[1771547237461,79.61321552,83.393,83.345,3.35798538]
[1771547237667,79.61321552,83.393,83.346,3.35798538]
[1771547237858,79.61321552,83.393,83.336,10.8054]
[1771547238663,79.72500157,83.39,83.328,10.8066]
[1771547240168,79.72500157,83.39,83.335,10.8056]
[1771547240368,79.7258316,83.387,83.3,7.88941655]
[1771547241166,79.69662376,83.376,83.31,62.0]
[1771547241364,79.69662376,83.376,83.27,7.88941655]
[1771547241565,79.69662376,83.376,83.254,253.68240838]
[1771547241566,79.69662376,83.376,83.311,10.8087]
[1771547241872,79.69662376,83.376,83.29,7.88941655]
[1771547242073,7.88941655,83.4,83.339,10.8051]
[1771547242074,79.69735553,83.399,83.339,10.8051]
[1771547242269,79.69735553,83.399,83.31,7.88941655]
[1771547243065,79.72608112,83.389,83.331,10.8061]
[1771547243765,79.72608112,83.389,83.29,7.88941655]
[1771547243766,79.72686769,83.383,83.32,10.8075]
[1771547244370,79.72686769,83.383,83.3,62.0]
[1771547244570,79.72686769,83.383,83.31,7.88941655]
[1771547244972,79.72686769,83.383,83.331,10.8061]
[1771547245474,79.72436516,83.404,83.32,7.88941655]
[1771547246176,79.72436516,83.404,83.322,13.92240838]
[1771547246373,79.72436516,83.404,83.323,13.92240838]
[1771547246574,79.72436516,83.404,83.322,13.92240838]
[1771547246971,79.61652624,83.392,83.334,10.8058]
[1771547247476,79.61652624,83.392,83.314,13.92240838]
[1771547247670,79.61652624,83.392,83.313,13.92240838]
[1771547248072,79.61701166,83.388,83.332,10.806]
[1771547249778,79.61701166,83.388,83.314,13.92240838]
[1771547250076,79.61701166,83.388,83.301,13.92240838]
[1771547250483,21.5902,83.417,83.307,10.8093]
[1771547250484,79.58637814,83.365,83.307,10.8093]
[1771547251584,79.55650687,83.363,83.311,10.8087]
[1771547251785,79.55650687,83.363,83.3,75.92240838]
[1771547251982,79.55650687,83.363,83.3,62.0]
[1771547252686,79.544779,83.354,83.304,10.8097]
[1771547256484,79.544779,83.354,83.311,10.8088]
[1771547256678,79.544779,83.354,83.3,62.0]
[1771547256679,79.50090643,83.371,83.307,13.92240838]
[1771547257079,79.50090643,83.371,83.308,13.92240838]
[1771547258089,79.50090643,83.371,83.31,13.92240838]
[1771547258291,79.50090643,83.371,83.307,13.92240838]
[1771547258685,79.50090643,83.371,83.308,13.92240838]
[1771547258884,79.50090643,83.371,83.317,13.92240838]
[1771547259387,79.50090643,83.371,83.33,10.8062]
[1771547259984,79.50090643,83.371,83.322,10.8073]
[1771547260287,79.50090643,83.371,83.313,13.92240838]
[1771547260689,79.50090643,83.371,83.32,10.8076]
[1771547261387,79.6896596,83.368,83.308,13.92240838]
[1771547261591,79.6896596,83.368,83.304,13.92240838]
[1771547261792,79.6896596,83.368,83.307,13.92240838]
[1771547262092,79.6896596,83.368,83.315,10.8082]
[1771547262283,79.6896596,83.368,83.307,13.92240838]
[1771547262692,79.6896596,83.368,83.303,13.92240838]
[1771547263490,79.70074183,83.358,83.3,62.0]
[1771547263888,79.70128213,83.389,83.308,13.92240838]
[1771547264084,79.70128213,83.389,83.3,69.88941655]
[1771547264085,79.70128213,83.389,83.302,13.92240838]
[1771547264284,79.70128213,83.369,83.295,13.92240838]
[1771547264491,79.70128213,83.369,83.291,13.92240838]
[1771547264991,79.69129094,83.342,83.294,10.8109]
[1771547266592,79.69129094,83.342,83.276,13.92240838]
[1771547266593,79.69180348,83.338,83.284,10.8122]
[1771547267095,79.72900198,83.336,83.269,13.92240838]
[1771547267393,79.72900198,83.336,83.27,62.0]
[1771547268796,79.71713049,83.331,83.268,473.19480747]
[1771547269495,79.71713049,83.323,83.271,266.30692146]
[1771547270096,79.71713049,83.323,83.271,255.49302146]
[1771547270291,79.71765923,83.314,83.271,255.49302146]
[1771547270697,79.77615136,83.33,83.271,255.49302146]
[1771547270898,79.77615136,83.33,83.289,10.8116]
[1771547271600,79.77615136,83.355,83.271,255.49302146]
[1771547271801,79.77615136,83.355,83.28,62.0]
[1771547271996,10.8044,83.346,83.287,10.8119]
[1771547272200,79.77675959,83.345,83.287,10.8119]
[1771547272802,79.73637368,83.34,83.28,62.0]
[1771547274701,79.68913191,83.338,83.281,10.8126]
[1771547275497,79.68913191,83.338,83.289,10.8116]
[1771547277105,79.68913191,83.338,83.281,10.8126]
[1771547277705,79.68913191,83.338,83.291,10.8114]
[1771547278004,79.68913191,83.338,83.28,62.0]
[1771547279807,79.68210992,83.335,83.284,10.8122]
[1771547282408,10.8059,83.334,83.284,10.8122]
[1771547282608,79.6300349,83.333,83.284,10.8122]
[1771547286707,79.6300349,83.333,83.28,62.0]
[1771547287714,79.6300349,83.333,83.29,10.8115]
[1771547288110,79.6300349,83.333,83.28,62.0]
[1771547289315,79.6300349,83.333,83.288,10.8118]
[1771547290609,79.53962786,83.348,83.3,10.8102]
[1771547290811,79.53962786,83.348,83.287,20.88361257]
[1771547291012,79.53962786,83.348,83.292,20.88361257]
[1771547291210,79.53962786,83.348,83.293,20.88361257]
[1771547291811,79.53962786,83.348,83.288,138.88361257]
[1771547292010,79.53962786,83.348,83.289,20.88361257]
[1771547292214,79.53962786,83.348,83.29,20.88361257]
[1771547292718,90.34362786,83.348,83.294,10.8109]
[1771547293418,79.55769056,83.34,83.288,118.0]
[1771547294111,79.55769056,83.34,83.289,118.0]
[1771547294820,79.55769056,83.34,83.291,10.8113]
[1771547296116,79.8254153,83.338,83.289,118.0]
[1771547296821,79.81681464,83.333,83.289,118.0]
[1771547300227,79.81681464,83.333,83.29,118.0]
[1771547302230,79.81681464,83.333,83.296,10.8107]
[1771547302431,79.81681464,83.333,83.29,118.0]
[1771547303626,10.8043,83.346,83.29,118.0]
[1771547303828,79.88720337,83.347,83.3,2.9494039]
[1771547304528,79.88720337,83.362,83.32,2.9494039]
[1771547305032,79.88720337,83.362,83.321,10.8074]
[1771547305228,79.88720337,83.362,83.287,21.82025057]
[1771547305431,79.88720337,83.362,83.33,2.9494039]
[1771547305630,79.98351179,83.379,83.33,13.7557039]
[1771547305831,79.98351179,83.379,83.33,10.8063]
[1771547307033,80.02405695,83.377,83.31,7.89392995]
[1771547307430,10.8005,83.376,83.322,10.8073]
[1771547307632,80.02405695,83.375,83.322,10.8073]
[1771547308129,80.02405695,83.375,83.329,10.8064]
[1771547309727,80.02405695,83.375,83.322,10.8074]
[1771547310535,80.02405695,83.375,83.322,128.8074]
[1771547310730,79.91304162,83.368,83.322,118.0]
[1771547312735,79.91304162,83.368,83.324,10.807]
[1771547314842,79.91304162,83.368,83.323,118.0]
[1771547315347,7.89392995,83.4,83.31,7.89392995]
[1771547315640,36.12,83.477,83.37,7.89392995]
[1771547315836,167.7381,83.51,83.374,21.82025057]
[1771547316033,181.39005248,83.476,83.373,21.82025057]
[1771547316232,181.39005248,83.476,83.37,7.89392995]
[1771547316233,10.7885,83.468,83.386,10.799]
[1771547316643,10.7885,83.468,83.39,7.89392995]
[1771547316842,7.89392995,83.49,83.39,7.89392995]
[1771547317441,39.39775322,83.489,83.39,7.89392995]
[1771547317837,39.39743543,83.478,83.403,10.7968]
[1771547318837,39.44016434,83.473,83.403,10.7968]
[1771547319241,39.44016434,83.469,83.392,10.7982]
[1771547319846,39.44013042,83.453,83.39,7.89392995]
[1771547322743,39.43477031,83.449,83.39,7.89392995]
[1771547323149,39.43477031,83.449,83.38,62.0]
[1771547323351,39.43477031,83.449,83.382,10.7995]
[1771547324254,39.43798177,83.447,83.38,7.89392995]
[1771547325556,39.50248263,83.445,83.38,7.89392995]
[1771547325857,39.50248263,83.445,83.38,18.69372995]
[1771547326060,39.50248263,83.445,83.38,7.89392995]
[1771547326655,39.50248263,83.445,83.389,10.7986]
[1771547328456,39.49997039,83.443,83.38,69.89392995]
[1771547330061,39.49997039,83.443,83.389,10.7986]
[1771547331957,39.49997039,83.443,83.38,80.69362995]
[1771547332260,39.49997039,83.443,83.38,69.89392995]
[1771547333265,39.50642465,83.441,83.38,80.69372995]
[1771547335962,39.50642465,83.441,83.38,80.68206282]
[1771547336162,39.50642465,83.441,83.388,10.7988]
[1771547338068,39.50642465,83.441,83.395,10.7978]
[1771547338265,39.50642465,83.441,83.381,118.0]
[1771547338966,39.50642465,83.441,83.387,10.7989]
[1771547340667,39.50642465,83.441,83.394,10.798]
[1771547341466,39.50642465,83.441,83.404,10.7967]
[1771547341665,21.5696,83.497,83.4,7.88226282]
[1771547341666,7.88226282,83.51,83.401,118.0]
[1771547341871,39.41483628,83.502,83.401,118.0]
[1771547342070,39.41483628,83.502,83.402,118.0]
[1771547342269,39.41483628,83.482,83.41,62.0]
[1771547343667,39.39192784,83.472,83.403,118.0]
[1771547344069,39.39192784,83.467,83.411,10.7957]
[1771547344268,39.39192784,83.467,83.4,7.88226282]
[1771547344475,39.39192784,83.467,83.38,7.88226282]
[1771547344677,39.39443251,83.426,83.36,7.88226282]
[1771547345173,39.39443251,83.426,83.371,10.801]
[1771547346170,39.39443251,83.419,83.363,10.8019]
[1771547348774,39.44492186,83.417,83.363,10.8019]
[1771547349872,39.44492186,83.417,83.37,2.94466754]
[1771547350973,39.44480174,83.415,83.37,2.94466754]
[1771547352270,39.44480174,83.415,83.38,2.94466754]
[1771547354371,10.7959,83.411,83.38,2.94466754]
[1771547354578,39.40827981,83.41,83.38,2.94466754]
[1771547357375,38.04655048,83.397,83.36,2.94466754]
[1771547357677,38.04655048,83.397,83.35,2.94466754]
[1771547357874,38.04655048,83.397,83.36,2.94466754]
[1771547358782,38.08744489,83.395,83.36,2.94466754]
[1771547359683,38.08744489,83.393,83.36,2.94466754]
[1771547360283,38.08744489,83.393,83.35,2.94466754]
[1771547360586,38.08744489,83.393,83.36,2.94466754]
[1771547360985,38.07506263,83.391,83.36,2.94466754]
[1771547361886,38.07506263,83.391,83.35,2.94466754]
[1771547366290,38.07506263,83.391,83.34,180.0]
[1771547366291,38.07506263,83.391,83.36,2.94466754]
[1771547369194,38.1298974,83.429,83.37,2.94466754]
[1771547369491,38.1298974,83.429,83.38,2.94466754]
[1771547370291,10.7966,83.406,83.38,2.94466754]
[1771547370486,38.1298974,83.42,83.39,2.94466754]
[1771547374296,38.16238606,83.419,83.37,2.94466754]
[1771547374492,38.16238606,83.419,83.36,2.94466754]
[1771547374693,38.16238606,83.419,83.37,2.94466754]
[1771547374895,36.70182675,83.406,83.354,10.8031]
[1771547375093,36.70182675,83.406,83.37,2.94466754]
[1771547375397,36.70182675,83.406,83.38,2.94466754]
[1771547375593,36.70182675,83.422,83.39,2.94466754]
[1771547375796,36.70182675,83.422,83.4,2.94466754]
[1771547376292,36.70182675,83.422,83.373,14.47509791]
[1771547376498,36.70182675,83.422,83.39,2.94466754]
[1771547377797,10.7947,83.421,83.39,2.94466754]
[1771547377997,36.7269107,83.42,83.39,2.94466754]
[1771547379201,36.76172164,83.418,83.39,2.94466754]
[1771547379601,36.76172164,83.418,83.4,2.94466754]
[1771547379902,36.76172164,83.418,83.374,14.47509791]
[1771547379903,36.76172164,83.418,83.39,2.94466754]
[1771547381501,36.76172164,83.418,83.4,2.94466754]
[1771547383502,36.76172164,83.418,83.39,2.94466754]
[1771547384606,36.76172164,83.418,83.376,10.8003]
[1771547384905,36.76172164,83.418,83.39,2.94466754]